[Event "Lilla Elite Hotels Open 2023"]
[Site "Elite Stadshotellet, Kungsgatan 6, Vaxjo, Sweden"]
[Date "2023.02.12"]
[Round "7.2"]
[White "Gunnare, William"]
[Black "Dingertz, Filip"]
[Result "1/2-1/2"]
[TimeControl "15 minutes + 5 seconds per move from move one (Round 1 - 4) / 90 minutes + 30 seconds per move from move one (Round 5 - 8)"]
[WhiteFideId "1774433"]
[BlackFideId "1757288"]
[WhiteElo "1457"]
[BlackElo "1571"]

1. d4 {[%clk 01:30:59]} Nf6 {[%clk 01:30:55]} {[%emt 00:00:05]} 2. Nf3 {[%clk
01:30:59]} {[%emt 00:00:30]} e6 {[%clk 01:31:08]} {[%emt 00:00:17]} 3. c4
{[%clk 01:31:03]} {[%emt 00:00:27]} b6 {[%clk 01:31:29]} {[%emt 00:00:09]} 4.
Bg5 {[%clk 01:29:39]} {[%emt 00:01:53]} Bb7 {[%clk 01:30:07]} {[%emt 00:01:52]}
5. e3 {[%clk 01:26:49]} {[%emt 00:03:20]} h6 {[%clk 01:29:09]} {[%emt
00:01:29]} 6. Bh4 {[%clk 01:25:08]} {[%emt 00:02:11]} Be7 {[%clk 01:26:48]}
{[%emt 00:02:50]} 7. Bd3 {[%clk 01:24:01]} {[%emt 00:01:38]} d5 {[%clk
01:25:06]} {[%emt 00:02:12]} 8. Nc3 {[%clk 01:17:20]} {[%emt 00:07:11]} O-O
{[%clk 01:22:23]} {[%emt 00:03:13]} 9. O-O {[%clk 01:16:33]} {[%emt 00:01:17]}
Ne4 {[%clk 01:19:20]} {[%emt 00:03:32]} 10. Bxe7 {[%clk 01:14:38]} {[%emt
00:02:25]} Qxe7 {[%clk 01:15:02]} {[%emt 00:04:48]} 11. Bxe4 {[%clk 01:05:53]}
{[%emt 00:09:16]} dxe4 {[%clk 01:15:17]} {[%emt 00:00:15]} 12. Nd2 {[%clk
01:06:14]} {[%emt 00:00:08]} f5 {[%clk 01:15:32]} {[%emt 00:00:15]} 13. f3
{[%clk 01:00:48]} {[%emt 00:05:56]} exf3 {[%clk 01:14:20]} {[%emt 00:01:41]} 14.
Nxf3 {[%clk 01:01:01]} {[%emt 00:00:17]} Nd7 {[%clk 01:13:39]} {[%emt
00:01:12]} 15. Qe2 {[%clk 01:00:27]} {[%emt 00:01:05]} Nf6 {[%clk 01:08:15]}
{[%emt 00:05:54]} 16. Ne5 {[%clk 00:57:50]} {[%emt 00:03:07]} Kh7 {[%clk
01:07:47]} {[%emt 00:00:56]} 17. a3 {[%clk 00:54:40]} {[%emt 00:03:41]} c5
{[%clk 01:07:01]} {[%emt 00:01:16]} 18. b4 {[%clk 00:45:03]} {[%emt 00:10:07]}
cxb4 {[%clk 01:05:27]} {[%emt 00:02:05]} 19. axb4 {[%clk 00:45:26]} {[%emt
00:00:07]} Qxb4 {[%clk 01:05:33]} {[%emt 00:00:23]} 20. Nb5 {[%clk 00:45:39]}
{[%emt 00:00:17]} Qe7 {[%clk 01:04:32]} {[%emt 00:01:30]} 21. Nxa7 {[%clk
00:45:07]} {[%emt 00:01:03]} Ne4 {[%clk 00:57:10]} {[%emt 00:07:51]} 22. Nb5
{[%clk 00:43:27]} {[%emt 00:02:11]} g5 {[%clk 00:50:36]} {[%emt 00:07:04]} 23.
Qh5 {[%clk 00:34:23]} {[%emt 00:09:34]} Qg7 {[%clk 00:49:57]} {[%emt 00:01:09]}
24. Qe2 {[%clk 00:25:54]} {[%emt 00:08:59]} g4 {[%clk 00:28:03]} {[%emt
00:22:25]} 25. Nd3 {[%clk 00:14:51]} {[%emt 00:11:32]} Rae8 {[%clk 00:23:32]}
{[%emt 00:05:01]} 26. Ra7 {[%clk 00:13:35]} {[%emt 00:01:45]} Re7 {[%clk
00:23:48]} {[%emt 00:00:14]} 27. Nf2 {[%clk 00:12:12]} {[%emt 00:01:54]} g3
{[%clk 00:23:11]} {[%emt 00:01:07]} 28. Nxe4 {[%clk 00:12:07]} {[%emt
00:00:34]} gxh2+ {[%clk 00:23:37]} {[%emt 00:00:05]} 29. Kh1 {[%clk 00:06:52]}
{[%emt 00:05:45]} Bxe4 {[%clk 00:23:41]} {[%emt 00:00:26]} 30. Rfa1 {[%clk
00:06:28]} {[%emt 00:00:54]} Rff7 {[%clk 00:20:25]} {[%emt 00:03:45]} 31. Rxe7
{[%clk 00:06:12]} {[%emt 00:00:47]} Rxe7 {[%clk 00:20:49]} {[%emt 00:00:07]} 32.
Nc3 {[%clk 00:05:58]} {[%emt 00:00:44]} Bc6 {[%clk 00:20:04]} {[%emt 00:01:12]}
33. Rb1 {[%clk 00:05:08]} {[%emt 00:01:22]} Qg3 {[%clk 00:05:00]} {[%emt
00:15:35]} 34. Rxb6 {[%clk 00:04:14]} {[%emt 00:01:23]} Bxg2+ {[%clk 00:03:19]}
{[%emt 00:02:11]} 35. Qxg2 {[%clk 00:04:37]} {[%emt 00:00:06]} Qe1+ {[%clk
00:03:43]} {[%emt 00:00:07]} 36. Kxh2 {[%clk 00:05:00]} {[%emt 00:00:07]} Rg7
{[%clk 00:04:00]} {[%emt 00:00:13]} 37. Rb7 {[%clk 00:04:05]} {[%emt 00:01:24]}
Qh4+ {[%clk 00:04:25]} {[%emt 00:00:05]} 38. Kg1 {[%clk 00:03:54]} {[%emt
00:00:42]} Qe1+ {[%clk 00:04:50]} {[%emt 00:00:05]} 1/2-1/2

[Event "Lilla Elite Hotels Open 2023"]
[Site "Elite Stadshotellet, Kungsgatan 6, Vaxjo, Sweden"]
[Date "2023.02.12"]
[Round "8.1"]
[White "Mendys, Tommy"]
[Black "Truskavetska, Solomia"]
[Result "1-0"]
[TimeControl "15 minutes + 5 seconds per move from move one (Round 1 - 4) / 90 minutes + 30 seconds per move from move one (Round 5 - 8)"]
[WhiteFideId "1762869"]
[BlackFideId "1744658"]
[WhiteElo "1563"]
[BlackElo "1558"]

1. e4 {[%clk 01:30:56]} {[%emt 00:00:04]} c5 {[%clk 01:30:54]} {[%emt
00:00:06]} 2. Nf3 {[%clk 01:31:21]} {[%emt 00:00:04]} Nc6 {[%clk 01:31:12]}
{[%emt 00:00:12]} 3. Bb5 {[%clk 01:31:44]} {[%emt 00:00:08]} d6 {[%clk
01:31:11]} {[%emt 00:00:31]} 4. O-O {[%clk 01:31:45]} {[%emt 00:00:29]} Bd7
{[%clk 01:30:51]} {[%emt 00:00:49]} 5. Re1 {[%clk 01:30:29]} {[%emt 00:01:46]}
g6 {[%clk 01:30:40]} {[%emt 00:00:42]} 6. c3 {[%clk 01:29:31]} {[%emt
00:01:29]} Bg7 {[%clk 01:30:06]} {[%emt 00:01:04]} 7. d4 {[%clk 01:29:21]}
{[%emt 00:00:39]} cxd4 {[%emt 00:00:49]} 8. cxd4 {[%clk 01:29:33]} {[%emt
00:00:15]} Nf6 {[%clk 01:29:12]} {[%emt 00:01:07]} 9. Nc3 {[%clk 01:23:02]}
{[%emt 00:07:02]} O-O {[%clk 01:27:05]} {[%emt 00:02:36]} 10. h3 {[%clk
01:21:30]} {[%emt 00:02:03]} a6 {[%clk 01:21:05]} {[%emt 00:06:29]} 11. Bf1
{[%clk 01:21:27]} {[%emt 00:00:33]} Rc8 {[%clk 01:10:09]} {[%emt 00:11:26]} 12.
e5 {[%clk 01:12:51]} {[%emt 00:09:07]} Ne8 {[%clk 01:06:35]} {[%emt 00:04:03]}
13. Bf4 {[%clk 01:10:28]} {[%emt 00:02:53]} dxe5 {[%clk 01:00:49]} {[%emt
00:06:17]} 14. dxe5 {[%clk 01:08:14]} {[%emt 00:02:44]} Nc7 {[%clk 01:00:39]}
{[%emt 00:00:40]} 15. Qd2 {[%clk 01:07:54]} {[%emt 00:00:50]} Ne6 {[%clk
00:58:18]} {[%emt 00:02:52]} 16. Bh6 {[%clk 01:08:08]} {[%emt 00:00:16]} Nb4
{[%clk 00:56:43]} {[%emt 00:02:04]} 17. Bxg7 {[%clk 01:07:12]} {[%emt
00:01:26]} Nxg7 {[%clk 00:55:17]} {[%emt 00:01:57]} 18. Re4 {[%clk 01:03:01]}
{[%emt 00:04:40]} Nc6 {[%clk 00:53:26]} {[%emt 00:02:22]} 19. Rd1 {[%clk
01:02:39]} {[%emt 00:00:51]} Be6 {[%clk 00:49:26]} {[%emt 00:04:30]} 20. Qh6
{[%clk 00:43:35]} {[%emt 00:19:35]} Nf5 {[%clk 00:49:08]} {[%emt 00:00:48]} 21.
Qf4 {[%clk 00:43:44]} {[%emt 00:00:16]} Qb6 {[%clk 00:43:48]} {[%emt 00:05:53]}
22. g4 {[%clk 00:39:00]} {[%emt 00:05:15]} Qxb2 {[%clk 00:41:06]} {[%emt
00:03:12]} 23. gxf5 {[%clk 00:32:20]} {[%emt 00:07:11]} Nxe5 {[%clk 00:26:46]}
{[%emt 00:14:48]} 24. Nxe5 {[%clk 00:27:57]} {[%emt 00:04:54]} Bxf5 {[%clk
00:25:03]} {[%emt 00:02:14]} 25. Rc4 {[%clk 00:27:36]} {[%emt 00:00:50]} Be6
{[%clk 00:15:14]} {[%emt 00:10:19]} 26. Rxc8 {[%clk 00:26:55]} {[%emt
00:01:12]} Rxc8 {[%clk 00:15:39]} {[%emt 00:00:04]} 27. Nd5 {[%clk 00:26:51]}
{[%emt 00:00:34]} Bxd5 {[%clk 00:12:00]} {[%emt 00:04:09]} 28. Rxd5 {[%clk
00:26:55]} {[%emt 00:00:26]} f6 {[%clk 00:11:51]} {[%emt 00:00:40]} 29. Ng4
{[%clk 00:23:48]} {[%emt 00:03:37]} h5 {[%clk 00:05:50]} {[%emt 00:06:30]} 30.
Ne3 {[%clk 00:21:57]} {[%emt 00:02:22]} b5 {[%clk 00:04:01]} {[%emt 00:02:20]}
31. Rd7 {[%clk 00:21:56]} {[%emt 00:00:30]} Kf7 {[%clk 00:03:25]} {[%emt
00:01:05]} 32. Qe4 {[%clk 00:21:35]} {[%emt 00:00:51]} Qa3 {[%clk 00:02:12]}
{[%emt 00:01:44]} 33. Nd5 {[%clk 00:21:44]} {[%emt 00:00:20]} Re8 {[%clk
00:01:54]} {[%emt 00:00:49]} 34. Nf4 {[%clk 00:21:59]} {[%emt 00:00:14]} Rg8
{[%emt 00:01:55]} 35. Qd5+ {[%clk 00:21:57]} {[%emt 00:00:30]} Kg7 {[%clk
00:00:46]} {[%emt 00:00:16]} 36. Rd8 {[%clk 00:21:03]} {[%emt 00:01:24]} Rxd8
{[%clk 00:00:43]} {[%emt 00:00:33]} 37. Qxd8 {[%clk 00:21:25]} {[%emt
00:00:08]} Qb4 {[%clk 00:00:32]} {[%emt 00:00:40]} 38. Nd5 {[%clk 00:21:05]}
{[%emt 00:00:50]} Qd2 {[%clk 00:00:32]} {[%emt 00:00:30]} 39. Qxe7+ {[%clk
00:21:25]} {[%emt 00:00:10]} Kh6 {[%clk 00:00:43]} {[%emt 00:00:18]} 40. Qf8+
{[%clk 00:21:21]} {[%emt 00:00:35]} Kg5 {[%clk 00:00:31]} {[%emt 00:00:43]} 41.
Qxf6+ {[%clk 00:21:42]} {[%emt 00:00:08]} Kh6 {[%clk 00:00:47]} {[%emt
00:00:14]} 42. Qf8+ {[%clk 00:21:38]} {[%emt 00:00:35]} Kg5 {[%clk 00:01:08]}
{[%emt 00:00:09]} 43. h4+ {[%clk 00:19:17]} {[%emt 00:02:50]} Kg4 {[%clk
00:00:35]} {[%emt 00:01:03]} 44. Ne3+ {[%clk 00:19:15]} {[%emt 00:00:31]} Qxe3
{[%clk 00:00:33]} {[%emt 00:00:34]} 45. fxe3 {[%clk 00:19:34]} {[%emt
00:00:11]} g5 {[%clk 00:00:31]} {[%emt 00:00:31]} 46. Be2+ {[%clk 00:19:27]}
{[%emt 00:00:38]} Kxh4 {[%clk 00:00:38]} {[%emt 00:00:22]} 47. Qf2+ {[%clk
00:19:53]} {[%emt 00:00:03]} Kh3 {[%clk 00:00:45]} {[%emt 00:00:23]} 48. Qh2#
{[%emt 00:00:07]} 1-0

[Event "Lilla Elite Hotels Open 2023"]
[Site "Elite Stadshotellet, Kungsgatan 6, Vaxjo, Sweden"]
[Date "2023.02.12"]
[Round "8.2"]
[White "Gunnare, William"]
[Black "Lyngsjo, Luke"]
[Result "1-0"]
[TimeControl "15 minutes + 5 seconds per move from move one (Round 1 - 4) / 90 minutes + 30 seconds per move from move one (Round 5 - 8)"]
[WhiteFideId "1774433"]
[BlackFideId "1755811"]
[WhiteElo "1457"]
[BlackElo "1391"]

1. d4 {[%clk 01:30:59]} Nf6 {[%clk 01:30:51]} {[%emt 00:00:09]} 2. c4 {[%clk
01:31:24]} {[%emt 00:00:06]} g6 {[%clk 01:31:14]} {[%emt 00:00:06]} 3. Nc3
{[%clk 01:31:49]} {[%emt 00:00:05]} Bg7 {[%clk 01:31:36]} {[%emt 00:00:08]} 4.
e4 {[%clk 01:32:13]} {[%emt 00:00:06]} d6 {[%clk 01:31:45]} {[%emt 00:00:21]} 5.
Be2 {[%clk 01:32:21]} {[%emt 00:00:23]} O-O {[%clk 01:31:48]} {[%emt 00:00:26]}
6. Nf3 {[%clk 01:32:05]} {[%emt 00:00:47]} e5 {[%clk 01:31:31]} {[%emt
00:00:46]} 7. d5 {[%clk 01:31:48]} {[%emt 00:00:48]} Ne8 {[%clk 01:22:16]}
{[%emt 00:09:45]} 8. O-O {[%clk 01:28:18]} {[%emt 00:03:59]} f5 {[%clk
01:20:31]} {[%emt 00:02:15]} 9. Bg5 {[%clk 01:24:56]} {[%emt 00:03:52]} Bf6
{[%clk 01:17:08]} {[%emt 00:03:54]} 10. Bxf6 {[%clk 01:23:52]} {[%emt
00:01:33]} Nxf6 {[%clk 01:16:57]} {[%emt 00:00:41]} 11. Bd3 {[%clk 01:15:47]}
{[%emt 00:08:35]} f4 {[%clk 01:14:36]} {[%emt 00:02:51]} 12. b4 {[%clk
01:13:05]} {[%emt 00:03:13]} Bg4 {[%clk 01:12:09]} {[%emt 00:02:56]} 13. Be2
{[%clk 01:09:41]} {[%emt 00:03:55]} Bxf3 {[%clk 01:06:29]} {[%emt 00:06:10]} 14.
Bxf3 {[%clk 01:09:59]} {[%emt 00:00:11]} Qc8 {[%clk 01:06:23]} {[%emt
00:00:36]} 15. Rc1 {[%clk 01:06:11]} {[%emt 00:04:19]} g5 {[%clk 00:55:13]}
{[%emt 00:11:39]} 16. h3 {[%clk 01:06:08]} {[%emt 00:00:33]} Kg7 {[%clk
00:54:45]} {[%emt 00:00:58]} 17. c5 {[%clk 01:01:17]} {[%emt 00:05:22]} Qd7
{[%clk 00:52:55]} {[%emt 00:02:19]} 18. Bg4 {[%clk 00:56:33]} {[%emt 00:05:14]}
Nxg4 {[%clk 00:53:00]} {[%emt 00:00:25]} 19. Qxg4 {[%clk 00:56:51]} {[%emt
00:00:12]} Qxg4 {[%clk 00:53:08]} {[%emt 00:00:21]} 20. hxg4 {[%clk 00:57:15]}
{[%emt 00:00:07]} Na6 {[%clk 00:50:25]} {[%emt 00:03:14]} 21. Nb5 {[%clk
00:54:25]} {[%emt 00:03:20]} Rf6 {[%clk 00:40:37]} {[%emt 00:10:18]} 22. cxd6
{[%clk 00:50:15]} {[%emt 00:04:40]} cxd6 {[%clk 00:39:53]} {[%emt 00:01:13]} 23.
Rc4 {[%clk 00:36:37]} {[%emt 00:14:08]} Kf8 {[%clk 00:38:07]} {[%emt 00:02:16]}
24. Rfc1 {[%clk 00:36:02]} {[%emt 00:01:05]} Ke8 {[%clk 00:37:58]} {[%emt
00:00:40]} 25. Nc7+ {[%clk 00:31:54]} {[%emt 00:04:38]} Nxc7 {[%clk 00:37:51]}
{[%emt 00:00:36]} 26. Rxc7 {[%clk 00:32:19]} {[%emt 00:00:05]} Rf7 {[%clk
00:38:03]} {[%emt 00:00:18]} 27. Rxf7 {[%clk 00:30:06]} {[%emt 00:02:43]} Kxf7
{[%clk 00:38:24]} {[%emt 00:00:09]} 28. Rc7+ {[%clk 00:30:32]} {[%emt
00:00:05]} Kg6 {[%clk 00:38:40]} {[%emt 00:00:13]} 29. Rd7 {[%clk 00:30:28]}
{[%emt 00:00:34]} a5 {[%clk 00:37:13]} {[%emt 00:01:58]} 30. b5 {[%clk
00:29:36]} {[%emt 00:01:21]} Rc8 {[%clk 00:34:51]} {[%emt 00:02:52]} 31. Rxd6+
{[%clk 00:29:51]} {[%emt 00:00:16]} Kf7 {[%clk 00:35:02]} {[%emt 00:00:18]} 32.
Rd7+ {[%clk 00:29:26]} {[%emt 00:00:56]} Ke8 {[%clk 00:35:10]} {[%emt
00:00:22]} 33. Rxb7 {[%clk 00:29:28]} {[%emt 00:00:28]} Rc1+ {[%clk 00:35:24]}
{[%emt 00:00:15]} 34. Kh2 {[%clk 00:29:49]} {[%emt 00:00:09]} Rc2 {[%clk
00:35:47]} {[%emt 00:00:08]} 35. Rxh7 {[%clk 00:24:13]} {[%emt 00:06:05]} Rxa2
{[%clk 00:35:51]} {[%emt 00:00:26]} 36. b6 {[%clk 00:24:19]} {[%emt 00:00:25]}
Kd8 {[%clk 00:34:11]} {[%emt 00:02:09]} 37. b7 {[%clk 00:24:00]} {[%emt
00:00:49]} Rb2 {[%clk 00:34:27]} {[%emt 00:00:14]} 38. d6 {[%clk 00:24:06]}
{[%emt 00:00:24]} 1-0